bitfinex/quotes_BTCUSD_20220103
["timestamp","ask_amount","ask_price","bid_price","bid_amount"]
[1641247785922,0.41058713,46052.0,46039.0,0.352255]
[1641247786122,0.23202371,46051.0,46039.0,0.054297]
[1641247786721,0.23202371,46051.0,46045.0,0.07154866]
[1641247787126,0.41058713,46052.0,46045.0,0.07154866]
[1641247787321,0.22745347,46051.0,46045.0,0.07154866]
[1641247787766,0.51918313,46052.0,46045.0,0.07154866]
[1641247788062,2.27125313,46046.0,46045.0,0.07154866]
[1641247791503,0.00873365,46051.0,46045.0,0.07154866]
[1641247791904,0.00873365,46051.0,46046.0,0.352255]
[1641247792108,0.00873365,46051.0,46046.0,0.402255]
[1641247792309,0.0049,46058.0,46046.0,0.402255]
[1641247792505,0.63642956,46057.0,46048.0,0.054287]
[1641247793607,0.108578,46064.0,46054.0,0.49047117]
[1641247793608,0.054285,46062.0,46054.0,0.49047117]
[1641247793809,0.114465,46069.0,46054.0,1.11517281]
[1641247794007,2.0223,46066.0,46054.0,1.11517281]
[1641247794208,1.9223,46066.0,46054.0,1.11517281]
[1641247794608,2.21307837,46066.0,46054.0,1.43890562]
[1641247795108,1.9223,46066.0,46054.0,1.49318662]
[1641247795967,0.61044299,46056.0,46054.0,1.49318662]
[1641247796368,0.61044299,46056.0,46054.0,1.14093162]
[1641247797472,0.61044299,46056.0,46054.0,0.86848498]
[1641247797668,0.61044299,46056.0,46054.0,1.46982805]
[1641247798069,0.61044299,46057.0,46054.0,1.46982805]
[1641247798271,0.60555515,46057.0,46055.0,0.38]
[1641247798470,0.60555515,46057.0,46055.0,0.05]
[1641247798670,0.60555515,46057.0,46056.0,0.054278]
[1641247799324,0.60055515,46057.0,46056.0,0.054278]
[1641247799523,0.60030987,46057.0,46056.0,0.054278]
[1641247800325,0.60030987,46057.0,46054.0,0.14475217]
[1641247800526,3.40673699,46061.0,46054.0,0.14475217]
[1641247801025,0.5285,46055.0,46054.0,0.14475217]
[1641247801825,0.5285,46055.0,46054.0,0.09047117]
[1641247804870,0.52743518,46055.0,46054.0,0.09047117]
[1641247811268,0.52743518,46055.0,46054.0,0.03636503]
[1641247821609,0.5275393,46055.0,46054.0,0.03636503]
[1641247834263,0.52704888,46055.0,46054.0,0.03636503]
[1641247839515,0.52704888,46055.0,46054.0,0.08636503]
[1641247840279,0.52704888,46055.0,46054.0,0.03636503]
[1641247840668,0.52704888,46055.0,46054.0,0.08636503]
[1641247842070,0.52704888,46055.0,46054.0,0.03636503]
[1641247859320,0.52204888,46055.0,46054.0,0.03636503]
[1641247866814,0.52204888,46055.0,46053.0,0.00089224]
[1641247869715,0.52204888,46055.0,46053.0,0.05517324]
[1641247880369,0.52204888,46055.0,46053.0,0.10517324]
[1641247880770,0.52204888,46055.0,46053.0,0.05517324]
[1641247880970,0.52204888,46055.0,46053.0,0.10517324]
[1641247883010,0.52204888,46055.0,46053.0,0.15100249]
[1641247883212,0.60997883,46060.0,46056.0,1.152]
[1641247883409,0.36377883,46060.0,46059.0,1.962255]
[1641247883612,0.84909774,46065.0,46064.0,0.00121554]
[1641247883808,0.84909774,46068.0,46064.0,2.59103104]
[1641247884010,0.84909774,46068.0,46067.0,3.20337498]
[1641247884208,0.84909774,46068.0,46067.0,3.4298709]
[1641247884410,0.0001,46074.0,46069.0,1.152]
[1641247884708,0.0001,46074.0,46069.0,1.647855]
[1641247885388,0.00018877,46070.0,46069.0,1.647855]
[1641247886187,0.00018877,46070.0,46069.0,2.677855]
[1641247887190,8.877e-05,46070.0,46069.0,3.522955]
[1641247887393,8.77e-06,46070.0,46069.0,3.57421303]
[1641247887590,8.77e-06,46070.0,46069.0,3.64214303]
[1641247887791,0.0001,46078.0,46073.0,0.2]
[1641247887993,0.0001,46078.0,46075.0,1.55551087]
[1641247888299,0.0001,46078.0,46075.0,1.67167087]
[1641247888494,0.0001,46078.0,46075.0,1.77167087]
[1641247889052,0.001,46079.0,46075.0,1.77167087]
[1641247889252,0.001,46079.0,46078.0,1.95348542]
[1641247889453,0.001,46079.0,46078.0,3.30332142]
[1641247889655,0.001,46079.0,46078.0,3.40332142]
[1641247890055,0.00972777,46089.0,46078.0,3.60332142]
[1641247890261,0.00972777,46089.0,46084.0,0.07213442]
[1641247890262,0.001,46089.0,46084.0,0.07213442]
[1641247890456,0.001,46089.0,46088.0,1.07351244]
[1641247890755,0.001,46089.0,46088.0,1.37770417]
[1641247890957,0.001,46089.0,46088.0,1.42770417]
[1641247891156,0.001,46089.0,46088.0,0.82711244]
[1641247891758,0.001,46089.0,46088.0,0.87711244]
[1641247891958,0.001,46089.0,46088.0,0.49711244]
[1641247892156,0.001,46089.0,46088.0,0.920086]
[1641247892979,0.0001,46095.0,46088.0,0.920086]
[1641247892980,0.85771581,46098.0,46089.0,1.07]
[1641247893279,0.85771581,46098.0,46097.0,0.5641858]
[1641247893483,0.85771581,46098.0,46097.0,0.6077858]
[1641247893879,1.18009428,46100.0,46097.0,0.0436]
[1641247894279,1.18009428,46100.0,46097.0,0.09782905]
[1641247894880,0.32237847,46100.0,46097.0,0.09782905]
[1641247896719,0.0001051,46098.0,46097.0,0.09782905]
[1641247899320,0.0001051,46098.0,46097.0,0.10636305]
[1641247901776,0.0002201,46099.0,46097.0,0.10636305]
[1641247901976,0.0002201,46099.0,46098.0,0.05]
[1641247902576,0.0002201,46099.0,46097.0,0.06276305]
[1641247903378,0.0002201,46099.0,46097.0,0.11110552]
[1641247906534,0.0002201,46099.0,46097.0,0.008534]
[1641247908167,0.99009555,46098.0,46097.0,0.062776]
[1641247913917,1.41009555,46098.0,46097.0,0.062776]
[1641247914119,0.99009555,46098.0,46097.0,0.062776]
[1641247918378,9.555e-05,46098.0,46097.0,0.062776]
[1641247918779,0.44009555,46098.0,46097.0,0.062776]
[1641247919229,9.555e-05,46098.0,46097.0,0.062776]
[1641247919729,9.555e-05,46098.0,46097.0,0.008534]
[1641247919928,0.51009555,46098.0,46097.0,0.008534]
[1641247921235,9.555e-05,46098.0,46097.0,0.008534]
[1641247921431,1.22529201,46098.0,46097.0,0.008534]
[1641247921632,9.555e-05,46098.0,46097.0,0.008534]
[1641247921831,0.57009555,46098.0,46097.0,0.008534]
[1641247922232,1.79529201,46098.0,46097.0,0.008534]
[1641247922869,0.57009555,46098.0,46097.0,0.008534]
[1641247923469,1.79529201,46098.0,46097.0,0.008534]
[1641247924170,0.57009555,46098.0,46097.0,0.008534]
[1641247924571,1.79529201,46098.0,46097.0,0.008534]
[1641247929823,1.79529201,46098.0,46097.0,0.0627729]
[1641247930284,1.79529201,46098.0,46097.0,0.008534]
[1641247932382,1.79529201,46098.0,46097.0,0.07039998]
[1641247932579,1.79529201,46098.0,46097.0,0.06965945]
[1641247932779,1.79529201,46098.0,46097.0,0.56134276]
[1641247932980,1.79529201,46098.0,46097.0,0.56826295]
[1641247933180,1.79529201,46098.0,46097.0,0.56134276]
[1641247934010,1.79529201,46098.0,46097.0,0.56930114]
[1641247934312,1.79529201,46098.0,46097.0,0.56664859]
[1641247934512,1.79529201,46098.0,46097.0,0.56134276]
[1641247934714,1.79529201,46098.0,46097.0,0.50710493]
[1641247935311,1.79529201,46098.0,46097.0,0.60221933]
[1641247935515,1.22529201,46098.0,46097.0,0.60221933]
[1641247935713,1.22529201,46098.0,46097.0,0.71822498]
[1641247935912,1.22029201,46098.0,46097.0,0.71694911]
[1641247936315,0.0002201,46099.0,46097.0,0.71068751]
[1641247936512,0.85770135,46098.0,46097.0,0.71068751]
[1641247937112,0.85792145,46099.0,46097.0,0.71068751]
[1641247937778,0.85792145,46099.0,46097.0,0.76492251]
[1641247938170,0.0002201,46099.0,46097.0,0.76492251]
[1641247938669,0.0002201,46099.0,46097.0,0.81915645]
[1641247939270,0.0002201,46099.0,46097.0,0.65645433]
[1641247940273,0.85302145,46100.0,46097.0,0.65645433]
[1641247940671,9.569e-05,46098.0,46097.0,0.65645433]
[1641247942324,9.569e-05,46098.0,46097.0,1.00870933]
[1641247942727,0.59381223,46108.0,46098.0,0.62185388]
[1641247942924,0.59381223,46108.0,46098.0,0.32383088]
[1641247943126,1.452995,46099.0,46098.0,0.26959888]
[1641247943324,1.452995,46099.0,46097.0,0.65645033]
[1641247943526,1.452995,46099.0,46097.0,0.60221933]
[1641247944124,1.452995,46099.0,46097.0,0.65645033]
[1641247944725,0.61258862,46098.0,46097.0,0.65645033]
[1641247945373,1.452995,46099.0,46097.0,0.65645033]
[1641247946871,0.6125842,46098.0,46097.0,0.65645033]
[1641247947071,0.6125842,46098.0,46097.0,1.01614479]
[1641247947272,0.6125842,46098.0,46097.0,1.10974479]
[1641247947475,0.6125842,46098.0,46097.0,2.63199979]
[1641247947673,0.6125842,46098.0,46097.0,1.56199979]
[1641247947878,0.001,46109.0,46097.0,2.65976879]
[1641247947879,0.6125842,46100.0,46097.0,2.65976879]
[1641247948075,0.6125842,46100.0,46099.0,1.14]
[1641247948274,0.001,46109.0,46102.0,1.61]
[1641247948477,0.001,46109.0,46108.0,0.00124651]
[1641247948677,0.001,46109.0,46108.0,2.15472562]
[1641247948875,0.001,46109.0,46108.0,3.30672562]
[1641247949120,0.001,46109.0,46108.0,3.50672562]
[1641247949322,0.001,46109.0,46108.0,3.56093362]
[1641247949820,0.001,46109.0,46108.0,3.51733362]
[1641247950320,0.001,46109.0,46108.0,2.36533362]
[1641247950524,0.001,46109.0,46108.0,3.51733362]
[1641247951118,0.001,46109.0,46108.0,2.36533362]
[1641247951319,0.00108642,46109.0,46108.0,2.26617303]
[1641247951521,0.00108642,46109.0,46108.0,2.36617303]
[1641247951720,0.00108642,46109.0,46108.0,3.51817303]
[1641247951920,0.00024494,46115.0,46110.0,1.152]
[1641247952119,0.00024494,46115.0,46114.0,0.75348563]
[1641247952326,0.00024494,46115.0,46114.0,1.15994463]
[1641247952520,0.00024494,46115.0,46114.0,1.35994463]
[1641247952782,0.00024494,46115.0,46114.0,4.31599592]
[1641247952983,0.00024494,46115.0,46114.0,4.55063026]
[1641247953284,0.00024494,46115.0,46114.0,5.70263026]
[1641247953482,0.00024494,46115.0,46114.0,5.90263026]
[1641247954081,0.00024494,46115.0,46114.0,5.89892408]
[1641247954284,0.0001,46120.0,46117.0,1.152]
[1641247954484,0.0001,46120.0,46118.0,0.8399846]
[1641247954682,0.0001,46120.0,46118.0,1.9919846]
[1641247954884,0.0001,46120.0,46118.0,2.0919846]
[1641247955183,0.0001,46120.0,46118.0,0.7899846]
[1641247955383,0.0001,46120.0,46118.0,0.6080663]
[1641247955785,0.0001,46120.0,46118.0,0.7080663]
[1641247956383,0.0001,46120.0,46118.0,1.8600663]
[1641247956824,0.0001,46120.0,46118.0,2.0600663]
[1641247957023,0.0001,46120.0,46119.0,1.61]
[1641247957225,0.0001,46120.0,46119.0,3.31552055]
[1641247957425,0.0001,46130.0,46121.0,0.2]
[1641247957625,0.0001,46130.0,46128.0,0.0012988]
[1641247957824,0.0001,46130.0,46128.0,1.14529162]
[1641247958028,0.0001,46130.0,46128.0,1.29529162]
[1641247958226,0.61215504,46131.0,46130.0,1.612255]
[1641247958227,0.41305504,46131.0,46130.0,1.612255]
[1641247958429,0.33525504,46131.0,46130.0,2.81551255]
[1641247958623,0.33525504,46131.0,46130.0,2.96551255]
[1641247959026,0.85713286,46135.0,46134.0,0.00124346]
[1641247959225,0.45683943,46136.0,46134.0,0.35349846]
[1641247959424,0.45683943,46136.0,46135.0,0.67585884]
[1641247959627,0.45683943,46136.0,46135.0,1.68011384]
[1641247959828,0.45683943,46136.0,46135.0,1.78011384]
[1641247960466,0.45683943,46136.0,46135.0,0.52811384]
[1641247960668,0.45683943,46136.0,46135.0,0.17585884]
[1641247960865,0.45683943,46136.0,46135.0,0.52811384]
[1641247961466,0.45683943,46136.0,46135.0,0.47811384]
[1641247961665,0.45683943,46136.0,46135.0,0.402255]
[1641247961866,0.45683943,46136.0,46135.0,0.0008467]
[1641247962066,0.45693321,46136.0,46135.0,0.3531017]
[1641247962467,0.45693321,46136.0,46135.0,0.0008467]
[1641247963367,0.45693321,46136.0,46135.0,0.00213192]
[1641247963572,0.45693321,46136.0,46135.0,0.0008467]
[1641247972253,0.02347121,46136.0,46135.0,0.0008467]
[1641247972656,0.02347121,46136.0,46135.0,0.09967501]
[1641247972857,0.61208006,46138.0,46135.0,0.14967501]
[1641247973056,0.61208006,46138.0,46136.0,0.108369]
[1641247973257,0.61308006,46139.0,46136.0,0.108369]
[1641247975282,0.61308006,46139.0,46136.0,0.16255276]
[1641247975685,0.001,46139.0,46136.0,0.16255276]
[1641247977788,0.001,46139.0,46136.0,0.26255276]
[1641247978789,0.001,46139.0,46136.0,0.21255276]
[1641247981843,0.001,46139.0,46136.0,0.26255276]
[1641247982647,0.001,46139.0,46136.0,0.21255276]
[1641247983287,0.001,46139.0,46137.0,0.05502972]
[1641247983487,8.697e-05,46138.0,46137.0,0.10502972]
[1641247983888,8.697e-05,46138.0,46137.0,0.05502972]
[1641247984088,8.697e-05,46138.0,46137.0,0.10502972]
[1641247984889,8.697e-05,46138.0,46137.0,0.21774672]
[1641247989327,0.001,46139.0,46137.0,0.21774672]
[1641247989529,0.001,46139.0,46138.0,0.05]
[1641247989925,0.001,46139.0,46137.0,0.16774672]
[1641247992091,0.001,46139.0,46137.0,0.1658285]
[1641247992293,0.001,46139.0,46138.0,0.05]
[1641247994329,0.0001,46140.0,46138.0,0.05084664]
[1641247994532,0.0001,46140.0,46139.0,0.054179]
[1641247995529,0.0001,46140.0,46139.0,0.104179]
[1641247997134,2.25856459,46144.0,46140.0,0.08158504]
[1641247997333,2.25856459,46144.0,46142.0,0.054178]
[1641247997531,2.25856459,46144.0,46142.0,0.104178]
[1641247997793,2.25856459,46144.0,46142.0,0.2625255]
[1641247997993,0.0004,46146.0,46143.0,0.00682188]
[1641247998194,0.0004,46146.0,46144.0,0.352255]
[1641247998399,0.0004,46148.0,46144.0,0.352255]
[1641247998400,0.0003,46148.0,46144.0,0.352255]
[1641247998593,0.0003,46148.0,46145.0,0.054169]
[1641247998793,0.0003,46148.0,46145.0,0.108338]
[1641247998993,0.0003,46148.0,46145.0,0.158338]
[1641247999193,0.0003,46148.0,46146.0,0.352255]
[1641248000395,1.88590698,46149.0,46145.0,0.64667575]
[1641248000595,1.88590698,46149.0,46147.0,0.108334]
[1641248000797,1.88590698,46149.0,46148.0,0.47374622]
[1641248000997,1.88590698,46149.0,46148.0,0.52374622]
[1641248001195,0.0002,46151.0,46149.0,0.702255]
[1641248001196,0.0001,46151.0,46149.0,0.702255]
[1641248001625,0.0001,46151.0,46149.0,0.404166]
[1641248002627,0.0001,46151.0,46149.0,0.45833167]
[1641248002825,0.0001,46151.0,46150.0,0.352255]
[1641248003227,2.78155858,46151.0,46150.0,0.352255]
[1641248003426,0.0001,46151.0,46149.0,0.55833167]
[1641248003628,0.0001,46151.0,46150.0,0.352255]
[1641248005287,0.0001829,46151.0,46149.0,0.5592071]
[1641248006185,0.0001829,46151.0,46149.0,0.2092071]
[1641248008790,0.0001829,46151.0,46149.0,0.1092071]
[1641248009242,0.61226296,46151.0,46149.0,0.1092071]
[1641248010140,0.61226296,46151.0,46149.0,0.1592071]
[1641248010841,0.0001829,46151.0,46149.0,0.1592071]
[1641248012545,0.0001829,46151.0,46149.0,0.1092071]
[1641248013877,0.0001829,46151.0,46149.0,0.0550411]
[1641248014077,0.0001829,46151.0,46149.0,0.1050411]
[1641248015783,0.0001829,46151.0,46149.0,0.1592111]
[1641248017634,0.0001829,46151.0,46150.0,0.352255]
[1641248018036,0.0004,46155.0,46150.0,0.352255]
[1641248018037,0.0650829,46158.0,46150.0,0.672255]
[1641248018239,0.0650829,46158.0,46154.0,0.054167]
[1641248018438,0.0005,46160.0,46154.0,0.054167]
[1641248019236,0.0013,46159.0,46154.0,0.054167]
[1641248019436,0.60388006,46160.0,46154.0,0.054167]
[1641248020283,0.0004,46161.0,46155.0,0.08600374]
[1641248020685,0.0004,46161.0,46156.0,0.054167]
[1641248021287,0.1,46159.0,46156.0,0.054167]
[1641248021488,0.1673934,46158.0,46156.0,0.054167]
[1641248021689,0.46598388,46158.0,46156.0,0.054167]
[1641248022790,0.57433688,46158.0,46156.0,0.054167]
[1641248023190,0.46598388,46158.0,46156.0,0.054167]
[1641248023790,0.52015888,46158.0,46156.0,0.054167]
[1641248025231,0.35276548,46158.0,46156.0,0.054167]
[1641248025430,0.054175,46158.0,46156.0,0.054167]
[1641248026535,0.32596914,46158.0,46156.0,0.054167]
[1641248026939,0.32596914,46158.0,46157.0,0.00087532]
[1641248027135,0.054175,46158.0,46157.0,0.00087532]
[1641248029287,0.66519823,46158.0,46157.0,0.00087532]
[1641248029888,0.66019823,46158.0,46157.0,0.00087532]
[1641248030693,0.76019823,46158.0,46157.0,0.00087532]
[1641248030991,0.76019823,46158.0,46149.0,0.017067]
[1641248030992,0.00123867,46155.0,46149.0,0.017067]
[1641248031198,0.52127062,46158.0,46129.0,0.06287142]
[1641248031199,1.7094967,46150.0,46129.0,0.06287142]
[1641248031394,0.00122668,46141.0,46135.0,0.108387]
[1641248031650,0.2528845,46138.0,46129.0,0.09447262]
[1641248031850,0.2528845,46138.0,46129.0,0.10300562]
[1641248032052,0.2528845,46138.0,46129.0,0.01721489]
[1641248032251,0.2528845,46138.0,46129.0,0.008533]
[1641248032451,0.054199,46134.0,46129.0,0.008533]
[1641248032655,0.054199,46134.0,46131.0,0.108395]
[1641248032851,0.054199,46134.0,46129.0,0.008533]
[1641248032852,0.13851609,46133.0,46129.0,0.008533]
[1641248033250,0.13851609,46133.0,46129.0,3.3e-05]
[1641248033251,0.32209562,46132.0,46129.0,3.3e-05]
[1641248033454,0.00125468,46130.0,46129.0,3.3e-05]
[1641248033657,1.98494203,46130.0,46129.0,3.3e-05]
[1641248033856,2.03494203,46130.0,46129.0,3.3e-05]
[1641248034055,2.13494203,46130.0,46129.0,3.3e-05]
[1641248034253,2.18494203,46130.0,46129.0,3.3e-05]
[1641248034653,3.33694203,46130.0,46129.0,3.3e-05]
[1641248034854,0.054223,46121.0,46112.0,0.108431]
[1641248035055,0.00127541,46113.0,46111.0,0.001]
[1641248035287,0.06052541,46113.0,46111.0,0.001]
[1641248035487,0.68052541,46113.0,46111.0,0.001]
[1641248035689,0.92032857,46112.0,46111.0,0.001]
[1641248036291,0.87032857,46112.0,46111.0,0.001]
[1641248036891,0.38674268,46113.0,46111.0,0.001]
[1641248037090,0.38674268,46113.0,46112.0,0.0005033]
[1641248037091,0.11475141,46113.0,46112.0,0.0005033]
[1641248037291,0.11475141,46113.0,46110.0,0.0507263]
[1641248037691,0.05550141,46113.0,46110.0,0.0507263]
[1641248037892,0.05550141,46113.0,46108.0,0.108441]
[1641248038093,0.054226,46111.0,46108.0,0.108441]
[1641248039239,0.03007899,46111.0,46108.0,0.116974]
[1641248040438,0.00012094,46112.0,46108.0,0.116974]
[1641248040640,0.00012094,46112.0,46109.0,0.05422]
[1641248041543,0.00012094,46112.0,46111.0,0.34315044]
[1641248041741,0.00012094,46112.0,46111.0,0.39315044]
[1641248041941,0.00012094,46112.0,46111.0,1.00861944]
[1641248042141,0.00012094,46112.0,46111.0,0.74540544]
[1641248042642,0.00012094,46112.0,46111.0,1.00962668]
[1641248042887,0.00012094,46112.0,46111.0,0.75393944]
[1641248043086,0.00012094,46112.0,46111.0,0.40168444]
[1641248043389,0.00012094,46112.0,46111.0,0.74168444]
[1641248043587,0.00012094,46112.0,46111.0,1.35509134]
[1641248043788,0.00012094,46112.0,46111.0,1.01509134]
[1641248043986,0.00012094,46112.0,46111.0,0.75393944]
[1641248044386,0.00012094,46112.0,46111.0,1.01486915]
[1641248044587,0.00012094,46112.0,46111.0,0.75393944]
[1641248045387,2.23188707,46118.0,46114.0,0.054208]
[1641248045988,2.23188707,46118.0,46114.0,0.104208]
[1641248049044,0.00015566,46117.0,46114.0,0.104208]
[1641248049848,0.00015566,46117.0,46114.0,0.099208]
[1641248051085,0.00015566,46117.0,46114.0,0.107741]
[1641248052988,0.00015566,46117.0,46114.0,0.057741]
[1641248055027,0.00015566,46117.0,46114.0,0.066274]
[1641248060502,0.00015566,46117.0,46114.0,0.106274]
[1641248061834,0.00015566,46117.0,46114.0,0.056274]
[1641248066304,0.00015566,46117.0,46114.0,0.106274]
[1641248066902,0.00015566,46117.0,46114.0,0.056274]
[1641248067400,0.00015566,46117.0,46114.0,0.046274]
[1641248069451,2.23146501,46118.0,46114.0,0.046274]
[1641248072254,2.23146501,46118.0,46114.0,0.017066]
[1641248074482,2.23646501,46118.0,46114.0,0.017066]
[1641248077553,2.17520214,46118.0,46114.0,0.017066]
[1641248085042,0.23273846,46117.0,46114.0,0.017066]
[1641248085244,0.23303975,46117.0,46114.0,0.017066]
[1641248085442,2.17520214,46118.0,46114.0,0.017066]
[1641248088604,2.17520214,46118.0,46114.0,0.01706551]
[1641248090504,0.00014151,46117.0,46114.0,0.01706551]
[1641248092853,2.17034365,46118.0,46114.0,0.01706551]
[1641248093052,2.22034365,46118.0,46114.0,0.01706551]
[1641248099743,2.22034365,46118.0,46115.0,0.3426834]
[1641248100745,0.00012907,46117.0,46115.0,0.3426834]
[1641248102146,0.00012907,46117.0,46114.0,0.01706551]
[1641248103593,0.00012907,46117.0,46114.0,0.07127551]
[1641248103795,0.00012907,46117.0,46114.0,0.12127551]
[1641248103992,0.00012907,46117.0,46114.0,0.07127551]
[1641248104494,0.00012907,46117.0,46114.0,0.12127551]
[1641248105298,2.21547272,46118.0,46114.0,0.12127551]
[1641248107149,2.21547272,46118.0,46114.0,0.06706551]
[1641248107450,2.21547272,46118.0,46114.0,0.01706551]
[1641248107647,2.26968472,46118.0,46114.0,0.01706551]
[1641248107847,2.21547272,46118.0,46114.0,0.01706551]
[1641248108247,0.00011691,46117.0,46114.0,0.01706551]
[1641248108648,0.00011691,46117.0,46114.0,0.06706551]
[1641248108849,0.05432891,46117.0,46114.0,0.06706551]
[1641248109247,0.00011691,46117.0,46116.0,0.03129901]
[1641248110700,2.21547272,46118.0,46116.0,0.03129901]
[1641248114242,2.21547272,46118.0,46116.0,0.01554268]
[1641248114445,2.21547272,46118.0,46114.0,0.01706551]
[1641248114446,2.26968672,46118.0,46114.0,0.01706551]
[1641248114647,2.26968672,46118.0,46117.0,0.03129901]
[1641248115647,2.45682539,46118.0,46117.0,0.03129901]
[1641248115846,2.45682539,46118.0,46117.0,9.901e-05]
[1641248116046,2.45682539,46118.0,46114.0,0.01706551]
[1641248116047,2.49449539,46118.0,46114.0,0.01706551]
[1641248116246,0.32254842,46117.0,46114.0,0.01706551]
[1641248116648,0.3229113,46102.0,46101.0,0.001]
[1641248116846,0.4111313,46102.0,46101.0,0.001]
[1641248117445,0.4653663,46102.0,46101.0,0.001]
[1641248117646,0.713608,46102.0,46101.0,0.001]
[1641248119097,0.71490769,46102.0,46101.0,0.001]
[1641248119497,0.71500158,46102.0,46101.0,0.001]
[1641248121961,0.71500158,46102.0,46101.0,0.009533]
[1641248123462,0.81500158,46102.0,46100.0,6.6e-05]
[1641248123661,0.30728824,46101.0,46100.0,6.6e-05]
[1641248123862,0.30728824,46101.0,46096.0,0.00871805]
[1641248123863,0.30854453,46101.0,46096.0,0.00871805]
[1641248124062,0.00125907,46097.0,46096.0,0.00871805]
[1641248124467,0.00125907,46097.0,46096.0,1.805e-05]
[1641248125891,0.33366165,46097.0,46096.0,0.00855205]
[1641248126088,0.43366165,46097.0,46096.0,0.00855205]
[1641248126290,0.43366165,46097.0,46096.0,0.008534]
[1641248126890,1.58566165,46097.0,46096.0,0.008534]
[1641248127094,1.68566165,46097.0,46091.0,0.00971816]
[1641248127293,0.00120424,46092.0,46091.0,0.00971816]
[1641248127691,0.28174299,46092.0,46091.0,0.00971816]
[1641248128291,0.28174299,46092.0,46091.0,0.001]
[1641248128491,0.33600099,46092.0,46091.0,0.001]
[1641248128692,0.38600099,46092.0,46091.0,0.001]
[1641248129149,1.53800099,46092.0,46091.0,0.001]
[1641248129752,1.48800099,46092.0,46091.0,0.001]
[1641248129951,2.1004603,46092.0,46091.0,0.001]
[1641248130152,2.10054563,46092.0,46091.0,0.001]
[1641248130350,1.48808632,46092.0,46091.0,0.001]
[1641248131552,1.58808632,46092.0,46091.0,0.001]
[1641248131752,1.58808632,46092.0,46081.0,0.001]
[1641248131953,0.00120083,46084.0,46081.0,0.001]
[1641248132255,0.26200671,46083.0,46081.0,0.001]
[1641248132454,0.26110718,46082.0,46081.0,0.001]
[1641248135201,0.31627371,46083.0,46081.0,0.001]
[1641248135603,0.31627371,46083.0,46081.0,0.009534]
[1641248137446,0.24608247,46082.0,46081.0,0.009534]
[1641248140051,0.31627371,46083.0,46081.0,0.009534]
[1641248140052,0.054267,46083.0,46081.0,0.009534]
[1641248140302,0.054256,46085.0,46081.0,0.009534]
[1641248140504,0.01361845,46087.0,46083.0,0.08714703]
[1641248140505,0.00871845,46087.0,46083.0,0.08714703]
[1641248141102,0.00871845,46087.0,46083.0,0.35177977]
[1641248141304,0.00871845,46087.0,46084.0,0.352255]
[1641248141504,0.00016618,46086.0,46084.0,0.352255]
[1641248143606,0.00016618,46086.0,46083.0,0.45602677]
[1641248144457,0.00016618,46086.0,46083.0,0.51027209]
[1641248145460,0.00016618,46086.0,46084.0,0.352255]
[1641248145660,0.00016618,46086.0,46084.0,0.406499]
[1641248146661,0.00016618,46086.0,46084.0,0.352255]
[1641248146859,0.23379113,46092.0,46084.0,0.352255]
[1641248147061,0.23379113,46092.0,46083.0,0.40602677]
[1641248147062,0.25839518,46096.0,46083.0,0.35177977]
[1641248147261,2.53339521,46089.0,46083.0,0.35177977]
[1641248147661,2.53339521,46089.0,46083.0,0.40177977]
[1641248148486,2.53339521,46089.0,46085.0,0.054247]
[1641248148688,0.05554209,46096.0,46083.0,0.40177977]
[1641248148889,0.24472535,46095.0,46089.0,0.3290905]
[1641248149088,0.05873069,46097.0,46089.0,0.3290905]
[1641248149287,0.05873069,46097.0,46089.0,0.3790905]
[1641248149691,0.05873069,46097.0,46090.0,0.054239]
[1641248150090,2.31285418,46092.0,46090.0,0.054239]
[1641248150595,2.31285418,46092.0,46089.0,0.3290905]
[1641248150789,2.31285418,46092.0,46088.0,0.108478]
[1641248150790,2.31285418,46092.0,46088.0,0.158478]
[1641248150991,2.31285418,46092.0,46088.0,0.05]
[1641248151190,2.31285418,46092.0,46086.0,0.00122066]
[1641248151393,2.31285418,46092.0,46079.0,0.117025]
[1641248151665,2.31285418,46092.0,46083.0,0.13714703]
[1641248152064,2.31285418,46092.0,46086.0,0.46654156]
[1641248152264,2.31285418,46092.0,46087.0,0.35156679]
[1641248152464,0.0512965,46097.0,46087.0,0.35156679]
[1641248152665,0.05,46097.0,46087.0,0.35156679]
[1641248152867,0.00013981,46092.0,46087.0,0.35156679]
[1641248153067,0.00013981,46092.0,46090.0,0.05423544]
[1641248153264,0.00013981,46092.0,46091.0,0.352255]
[1641248153666,0.00013981,46092.0,46091.0,0.402255]
[1641248154669,0.00013981,46092.0,46091.0,0.456488]
[1641248158699,0.00013981,46092.0,46091.0,0.451488]
[1641248160345,0.00013981,46092.0,46091.0,0.406488]
[1641248160544,0.00013981,46092.0,46091.0,0.352255]
[1641248163884,0.00013981,46092.0,46091.0,0.402255]
[1641248165587,0.05,46097.0,46091.0,0.402255]
[1641248165787,0.05,46097.0,46092.0,0.054236]
[1641248167543,0.05,46097.0,46091.0,0.108474]
[1641248167843,0.05,46097.0,46092.0,0.352255]
[1641248168842,0.05,46097.0,46092.0,0.40649]
[1641248169043,0.05,46097.0,46094.0,0.32845835]
[1641248169244,0.05,46097.0,46095.0,0.352255]
[1641248172101,2.8006254,46097.0,46095.0,0.352255]
[1641248172300,2.8006254,46097.0,46092.0,0.41137284]
[1641248172503,2.8006254,46097.0,46092.0,0.36137284]
[1641248172700,2.8006254,46097.0,46092.0,0.41560984]
[1641248172900,2.8006254,46097.0,46092.0,0.108472]
[1641248173502,2.8006254,46097.0,46091.0,0.503673]
[1641248173905,2.8006254,46097.0,46091.0,0.75140879]
[1641248174159,2.8006254,46097.0,46091.0,0.80140879]
[1641248174358,0.00013095,46096.0,46091.0,0.80140879]
[1641248174757,0.00013095,46096.0,46091.0,0.503673]
[1641248175558,0.00013095,46096.0,46092.0,0.054237]
[1641248177660,0.00013095,46096.0,46091.0,0.553673]
[1641248179504,0.00013095,46096.0,46092.0,0.054237]
[1641248180806,0.00013095,46096.0,46092.0,0.108474]
[1641248183653,0.00013095,46096.0,46093.0,0.054236]
[1641248183857,0.00013095,46096.0,46094.0,0.054236]
[1641248186910,0.00013095,46096.0,46094.0,0.16270556]
[1641248188509,0.00013095,46096.0,46094.0,0.21270556]
[1641248189958,0.00013095,46096.0,46095.0,0.352255]
[1641248192357,0.05,46097.0,46095.0,0.352255]
[1641248192358,0.04362775,46097.0,46095.0,0.460721]
[1641248192814,0.04362775,46097.0,46096.0,0.05]
[1641248193016,0.04362775,46097.0,46096.0,0.352255]
[1641248193419,0.04362775,46097.0,46095.0,0.16269772]
[1641248194918,0.04362775,46097.0,46096.0,0.05]